Cogmind - Beta 15 @@@ ROGUE MODE // 2025.07.24 @ 14:17:12 Player: winnking222 Result: Destroyed by GL-W9G(j) with Overtuned Pulse Rifle Performance ------------- Evolutions (0) 0 Regions Visited (3) 600 Robots Destroyed (24) 120 Value Destroyed (649) 649 Prototype IDs (23) 460 Alien Tech Used (0) 0 Bonus (739) 739 TOTAL SCORE: 2568 Bonus ------- Registered with UFD 300 Met Optimus in HQ 500 Friendly Fire -61 Cogmind --------- Core Integrity 0/250 Matter 300/300 Energy 250/250 System Corruption 0% Temperature Warm (138) Movement Treading (260) Ox1 Location -9/Scraptown Parts ------- > --- POWER (1) -------- Ion Engine > --- PROPULSION (2) --- Spiked Treads Spiked Treads > --- UTILITY (2) ------ High-capacity Storage Unit > --- WEAPON (2) ------- (None) > --- INVENTORY (20) --- Meta Core Xenon Bombardment Thruster Scrap Suit Large Matter Pod (150) 0b10 Decoder Chip [Generic] Improved Targeting Computer Improved Targeting Computer ID Mask Makeshift Light Armor Plating Tech Extrapolator Hypervelocity Gauss Rifle LU-1G1's Laser Shovel CPS Tube (2) CPS Tube (2) Shrapnel Trap Vortex Trap Peak State ------------ > --- POWER ------------ Subdweller Power Source > --- PROPULSION ------- Spiked Treads Spiked Treads > --- UTILITY ---------- Small Storage Unit Makeshift Light Armor Plating > --- WEAPON ----------- Autobeam Slug Cannon > --- INVENTORY -------- Meta Core Subdweller Monowheel Makeshift Light Armor Plating Scrap Shield Subdweller Laser Subdweller Machine Gun Subdweller Machine Gun [Rating: 19] Favorites ----------- Power Ion Engine Engine Ion Engine Propulsion Spiked Treads Treads Spiked Treads Leg Aluminum Leg Wheel Compact Wheel Utility Small Storage Unit Device Cobbler Unit Storage Small Storage Unit Protection Makeshift Light Armor Plating Weapon Subdweller Machine Gun Energy Gun Autobeam Energy Cannon Subdweller Beam Cannon Ballistic Gun Subdweller Machine Gun Ballistic Cannon Slug Cannon Special Weapon Plasma Cutter Build | -11 -10 -10 -9 ------- Run | Yrd Mat Sub Scr Slots Evolved . | . . . . Power . | . . . . Propulsion . | . . . . Utility . | . . . . Weapon . | . . . . Parts Attached 43 | 7 . 26 10 Power 10 | 1 . 8 1 Engine 10 | 1 . 8 1 Core . | . . . . Reactor . | . . . . Propulsion 8 | 2 . 3 3 Treads 4 | . . 2 2 Leg 3 | 2 . 1 . Wheel 1 | . . . 1 Hover . | . . . . Flight . | . . . . Utility 9 | 2 . 4 3 Device 4 | 1 . 2 1 Storage 3 | 1 . . 2 Processor . | . . . . Hackware . | . . . . Protection 2 | . . 2 . Artifact . | . . . . Weapon 16 | 2 . 11 3 Energy Gun 6 | 2 . 4 . Energy Cannon 1 | . . 1 . Ballistic Gun 6 | . . 4 2 Ballistic Cannon 2 | . . 2 . Launcher . | . . . . Special Weapon 1 | . . . 1 Impact Weapon . | . . . . Slashing Weapon . | . . . . Piercing Weapon . | . . . . Special Melee Weapon . | . . . . Unidentified Prototypes . | . . . . Parts Lost 6 | . . 2 4 Power . | . . . . Propulsion 1 | . . . 1 Utility 1 | . . 1 . Weapon 4 | . . 1 3 Highest Loss Streak 3 | . . 1 3 To Critical Strikes . | . . . . Average Backups 6 | 3 5 6 6 Power . | . 1 . . Propulsion 1 | 2 3 1 1 Utility 1 | . 1 . 2 Weapon 2 | . . 3 1 Tool/Special . | . . . . Unused Backups 20 | . . 6 14 Power . | . . . . Propulsion 6 | . . 3 3 Utility 9 | . . 3 6 Weapon 1 | . . . 1 Tool/Special 4 | . . . 4 Average Slot Usage (%) 88 | . 100 98 81 Engine 13 | . 14 13 13 Treads 21 | . . 16 25 Leg 5 | . 28 11 . Wheel 1 | . . . 2 Device 4 | . 14 7 2 Storage 12 | . 14 14 10 Protection 6 | . . 5 7 Energy Gun 7 | . 28 17 . Ballistic Gun 11 | . . 6 15 Special Weapon 1 | . . . 2 Peak Build Rating 19 | 7 7 19 19 Average Rating 13 | 5 7 13 14 On Entrance 7 | . 7 7 17 Naked Turns . | . . . . Heaviest Build 54 | 15 15 27 54 Greatest Support 40 | 20 20 40 40 Greatest Overweight (x) 3 | . . 1 3 Average Overweight (x) . | . . . . Largest Inventory Capacity 20 | 8 8 8 20 Average Capacity 10 | 7 8 8 12 Most Carried 20 | 6 5 8 20 Average Carried 8 | 4 5 7 9 Final Capacity 20 | 8 8 8 20 Final Carried 17 | 5 5 8 17 Class Distribution -------------------- 57% | Mutant 30% | Derelict-Mutant 11% | Scavenger-Mutant Dominant Class ---------------- Mutant | -10/Materials Mutant | -10/Subcaves Mutant | -9/Scraptown Resources | -11 -10 -10 -9 ----------- Run | Yrd Mat Sub Scr Matter Collected 1664 | 270 . 449 945 Remotely . | . . . . Salvage Created 818 | 92 22 634 70 Parts 62 | 10 2 45 5 Haulers Intercepted . | . . . . Recyclers Shooed . | . . . . Parts Field Recycled . | . . . . Retrieved Matter . | . . . . Parts Self-Destructed 20 | . . 20 . Prevented . | . . . . Kills | -11 -10 -10 -9 ------- Run | Yrd Mat Sub Scr Combat Hostiles Destroyed 19 | . . 18 1 Guns 16 | . . 15 1 Cannons 3 | . . 3 . Classes Destroyed 7 | 1 1 4 1 Worker 1 | . 1 . . Tunneler 4 | 4 . . . Swarmer 5 | . . 5 . Grunt 2 | . . 2 . Cobbler 1 | . . 1 . Subdweller 11 | . . 11 . Scrapper 1 | . . . 1 Best Kill Streak 4 | 4 1 3 1 Combat Bots Only 3 | . . 3 1 Max Kills in Single Turn 2 | 1 1 2 1 Gunslinging 1 | . . 1 . Exploded . | . . . . Melee . | . . . . Uniques/NPCs Destroyed . | . . . . Combat | -11 -10 -10 -9 -------- Run | Yrd Mat Sub Scr Hostile Shots Fired 101 | . . 50 51 Missed 30 | . . 17 13 Hits 71 | . . 33 38 Projectile 71 | . . 33 38 Critical Strikes 2 | . . . 2 Part Disruptions 1 | . . . 1 Damage Taken 1334 | 8 . 649 677 Core 256 | . . 160 96 Absorbed by Shields . | . . . . Core Remaining (%) 100 | 100 . . . Volleys Fired 111 | 6 1 93 11 Largest 2 | 2 2 2 2 Hottest 120 | 80 80 120 53 Shots Fired 188 | 12 2 158 16 Gun 152 | 12 2 123 15 Cannon 35 | . . 35 . Launcher . | . . . . Special 1 | . . . 1 Kinetic 74 | . . 59 15 Thermal 90 | . . 89 1 Explosive . | . . . . Electromagnetic 24 | 12 2 10 . Robot Hit Streak 31 | 6 2 31 10 Robot Miss Streak 6 | 2 . 6 1 Penetration Max . | . . . . Secondary Targets 2 | . . 2 . Max Gunslinging Chain 1 | . . 1 . Autonomous 47 | . . 47 . Shots Hit Robots 111 | 7 1 90 13 Core Hits 49 | 4 1 39 5 Critical Kills . | . . . . Critical Parts Destroyed . | . . . . Critical Strikes 1 | . . 1 . Destroy 1 | . . 1 . Melee Attacks . | . . . . Impact . | . . . . Slashing . | . . . . Piercing . | . . . . Sneak Attacks . | . . . . Combat Hostiles . | . . . . Follow-up Attacks . | . . . . Damage Inflicted 1722 | 124 12 1395 191 Guns 1424 | 95 12 1126 191 Cannons 269 | . . 269 . Explosions 29 | 29 . . . Melee . | . . . . Ramming . | . . . . Kinetic 593 | . . 402 191 Thermal 944 | 29 . 915 . Explosive . | . . . . Electromagnetic 185 | 95 12 78 . Impact . | . . . . Slashing . | . . . . Piercing . | . . . . Highest Corruption . | . . . . Average Corruption . | . . . . Corruption Purged . | . . . . Corruption Blocked . | . . . . Overload Shots . | . . . . Overflow Damage . | . . . . Projectiles . | . . . . Explosions . | . . . . Melee . | . . . . Knockbacks 2 | . . 2 . Impact . | . . . . Kinetic 2 | . . 2 . Secondary . | . . . . Self-Inflicted Damage 8 | 8 . . . Shots 1 | 1 . . . Rammed . | . . . . Targets Rammed . | . . . . Kicked . | . . . . Crushed . | . . . . Highest Temperature 480 | 66 18 480 140 Average Temperature 70 | 24 12 79 55 Received Heat Transfer 524 | . . 162 362 Effects 2 | . . 2 . Shutdowns 1 | . . 1 . Matter Decay 1 | . . 1 . Siege Activations . | . . . . Martial Activations . | . . . . Shielding Activations . | . . . . Robots Disrupted . | . . . . Combat Hostiles . | . . . . Robots Corrupted . | . . . . Combat Hostiles . | . . . . Parts Fried . | . . . . Impact Corruptions . | . . . . Robots Melted . | . . . . Combat Hostiles . | . . . . Parts Melted 2 | . . 2 . Heat Transferred 2360 | 50 . 2310 . Parts Sabotaged . | . . . . Parts Stolen . | . . . . Parts Stripped . | . . . . Power Chain Reactions 1 | 1 . . . Alert | -11 -10 -10 -9 ------- Run | Yrd Mat Sub Scr Maximum Alert Level . | . . . . Low Security (%) 100 | 100 100 . . Level 1 . | . . . . Level 2 . | . . . . Level 3 . | . . . . Level 4 . | . . . . Level 5 . | . . . . High Security . | . . . . Max Security . | . . . . Peak Influence 10 | 10 5 . . Initial . | . . . . Average . | 1 . . . Influence Increases 215 | 20 5 190 . Destroy 0b10 Robot/C 140 | . . 140 . Destroy 0b10 Robot/NC 25 | 20 5 . . Destroy Leader 20 | . . 20 . Lose Combat Pursuer 30 | . . 30 . Influence Decreases 215 | 20 5 190 . Time Decay 205 | 20 5 180 . Lost Part 10 | . . 10 . Squads Dispatched . | . . . . Investigation . | . . . . Extermination . | . . . . Reinforcement . | . . . . Assault . | . . . . Garrison . | . . . . Intercept . | . . . . Searches Triggered . | . . . . Construction Impeded . | . . . . Haulers Reinforced . | . . . . Active Scanning Responses . | . . . . Cargo Convoy Interrupts . | . . . . Stealth | -11 -10 -10 -9 --------- Run | Yrd Mat Sub Scr Distress Signals 1 | . 1 . . Communications Jammed . | . . . . Distress Signals . | . . . . Times Spotted 39 | . 1 25 13 Peak Tracking Total 6 | . . 6 5 Tactical Retreats 1 | . . 1 . Traps | -11 -10 -10 -9 ------- Run | Yrd Mat Sub Scr Traps Triggered 1 | . . 1 . Indirectly . | . . . . Trap Hack Attempts . | . . . . Triggered . | . . . . Disarmed . | . . . . Reprogrammed . | . . . . Reused . | . . . . Traps Extracted . | . . . . Installed . | . . . . Triggered . | . . . . Most Traps Carried 3 | . . 1 3 Machines | -11 -10 -10 -9 ---------- Run | Yrd Mat Sub Scr Machines Disabled 3 | . . 2 1 Max in Single Turn 1 | . . 1 1 Machines Repaired . | . . . . Machines Dismantled 1 | . . . 1 Machines Sabotaged . | . . . . Overloaded Fab Kills . | . . . . Hacking | -11 -10 -10 -9 --------- Run | Yrd Mat Sub Scr Machines Accessed 10 | . . 2 8 Terminals . | . . . . Fabricators . | . . . . Repair Stations . | . . . . Recycling Units . | . . . . Scanalyzers . | . . . . Garrison Access . | . . . . Total Hacks 59 | . . 13 46 Successful 59 | . . 13 46 Failed . | . . . . Catastrophic . | . . . . Database Lockouts . | . . . . Manual . | . . . . Terminals . | . . . . Fabricators . | . . . . Repair Stations . | . . . . Recycling Units . | . . . . Scanalyzers . | . . . . Garrison Access . | . . . . Terminal Hacks 59 | . . 13 46 Record 52 | . . 12 40 Robot Analysis 5 | . . . 5 Proto ID Catalog 2 | . . 1 1 Fabricator Hacks . | . . . . Repair Station Hacks . | . . . . Recycling Unit Hacks . | . . . . Scanalyzer . | . . . . Garrison Access Hacks . | . . . . Unauthorized Hacks . | . . . . Terminals . | . . . . Fabricators . | . . . . Repair Stations . | . . . . Recycling Units . | . . . . Scanalyzers . | . . . . Garrison Access . | . . . . Data Cores Recovered . | . . . . Used . | . . . . Hacking Detections . | . . . . Full Trace Events . | . . . . Feedback Events . | . . . . Feedback Blocked . | . . . . Robot Schematics Acquired . | . . . . Robots Built . | . . . . Authchips . | . . . . Time . | . . . . Total Robot Build Rating . | . . . . Part Schematics Acquired . | . . . . Parts Built . | . . . . Authchips . | . . . . Time . | . . . . Total Part Build Rating . | . . . . Parts Repaired . | . . . . Time . | . . . . Parts Recycled . | . . . . Recycled Matter . | . . . . Retrieved Matter . | . . . . Retrieved Components . | . . . . Parts Scanalyzed . | . . . . Part Schematics Acquired . | . . . . Parts Damaged . | . . . . Bothacking | -11 -10 -10 -9 ------------ Run | Yrd Mat Sub Scr Used RIF Installer . | . . . . Robots Hacked . | . . . . Non-combat . | . . . . Combat . | . . . . Robot Hacks Applied . | . . . . Relay Couplers Released . | . . . . Fabnet Peak Effective % . | . . . . Robots Rewired . | . . . . Allies Hacked . | . . . . Hacks Repelled . | . . . . Allies | -11 -10 -10 -9 -------- Run | Yrd Mat Sub Scr Total Allies . | . . . . Largest Group . | . . . . Highest-Rated Group . | . . . . Highest-Rated Ally . | . . . . Total Orders . | . . . . Ally Attacks . | . . . . Total Damage . | . . . . Kills . | . . . . Allies Corrupted . | . . . . Allies Melted 3 | . . . 3 Intel | -11 -10 -10 -9 ------- Run | Yrd Mat Sub Scr Active Infowar (turns) 1783 | 23 170 1590 . Optics 939 | . . 939 . Seismic 844 | 23 170 651 . Robot Analysis Total 5 | . . . 5 Derelict Logs Recovered 5 | . . 1 4 Drone Launches . | . . . . Drone Recoveries . | . . . . Exploration | -11 -10 -10 -9 ------------- Run | Yrd Mat Sub Scr Turns Passed 9632 | 125 170 3738 5599 Spaces Moved 4788 | 81 111 2033 2563 Core 12 | 12 . . . Treads 3377 | . . 1205 2172 Legs 1008 | 69 111 828 . Wheels 391 | . . . 391 Hover . | . . . . Flight . | . . . . Fastest Speed 50 | 50 120 120 130 Average Speed 166 | 109 120 158 176 Slowest Speed 260 | 120 120 190 260 Overloaded Moves . | . . . . Propulsion Burnouts . | . . . . Robots Hopped . | . . . . Potential Cave-ins . | . . . . Cave-ins Triggered . | . . . . Exploration Rate (%) 55 | 6 29 93 92 Regions Visited 3 Branch Regions 2 Pre-discovered Areas 4 | . . 2 2 Known Exits Taken . | . . . . Unknown Exits Taken 3 | 1 1 1 . Scrap Searched 12 | . . 3 9 Spaces Dug 3 | . . 3 . Terrain Destroyed 10 | 2 . 8 . Melee . | . . . . Projectile 8 | . . 8 . AOE 2 | 2 . . . Terrain Rammed . | . . . . Walls Destroyed . | . . . . Machines Disabled . | . . . . Actions | -11 -10 -10 -9 --------- Run | Yrd Mat Sub Scr Total 6303 | 104 146 2439 3614 Wait 1258 | . 35 235 988 Move 4785 | 80 110 2032 2563 Hop . | . . . . Pick Up 55 | 11 . 20 24 Fast Attach 10 | 1 . 8 1 Attach 20 | 6 . 7 7 Detach 2 | . . . 2 Swap 18 | . . 15 3 Drop 39 | . . 29 10 Fire 111 | 6 1 93 11 Melee . | . . . . Ram . | . . . . Kick . | . . . . Crush . | . . . . Escape Stasis . | . . . . Rewire . | . . . . Trap . | . . . . Miscellaneous 5 | . . . 5 Route ------- -11/Scrapyard -10/Materials (discovered 2 exits: [*Mat] / *Sub) -10/Subcaves (discovered 5 exits: [*Mat x2] / [*Rec] / *Scr x2) -9/Scraptown (discovered 2 exits: *Fac x2) History --------- Turn | Location | Event 2 | -11/Scrapyard | Met Revision 17 20 | -11/Scrapyard | Discovered new exit (range 12) 126 | -11/Scrapyard | Entered Materials 127 | -10/Materials | Met a group of wandering Federalists 191 | -10/Materials | Discovered new exit (range 13) 294 | -10/Materials | Discovered new exit (range 3) 296 | -10/Materials | Entered Subcaves 297 | -10/Subcaves | Continued accompanying wandering Federalists (6) 297 | -10/Subcaves | Approached by a straggling Scientist 314 | -10/Subcaves | Discovered new exit (range 11) 317 | -10/Subcaves | Build established: Mutant 378 | -10/Subcaves | Lost 4 allies 522 | -10/Subcaves | Wandering Federalist uncovered a shortcut to Scraptown 678 | -10/Subcaves | Discovered new exit (range 5) 715 | -10/Subcaves | Scientist uncovered a shortcut to Scraptown 824 | -10/Subcaves | Learned location of Zion (-7) 824 | -10/Subcaves | Met a Zionite searching for "candidates" 1296 | -10/Subcaves | Build established: Scavenger-Mutant 1474 | -10/Subcaves | Visited 4L-MR0's lab 1497 | -10/Subcaves | Found Meta Core 2037 | -10/Subcaves | Learned location of Mines (-10) 2221 | -10/Subcaves | Build established: Mutant 2784 | -10/Subcaves | Shifting Twisted Machinery released Shrapnel Trap 2786 | -10/Subcaves | Shifting Twisted Machinery released Piercing Trap 2801 | -10/Subcaves | Visited Clippyterm 2806 | -10/Subcaves | Learned Factory trap positions 2806 | -10/Subcaves | Learned Research machine intel 2928 | -10/Subcaves | Build established: Derelict-Mutant 3148 | -10/Subcaves | A swath of the cavern ceiling suddenly collapsed 3303 | -10/Subcaves | Core integrity fell below 50% 3338 | -10/Subcaves | Build established: Mutant 3346 | -10/Subcaves | Shifting Twisted Machinery released Mak. Flight Unit 3350 | -10/Subcaves | Discovered new exit (range 10) 3354 | -10/Subcaves | Shifting Twisted Machinery released Flamer 3945 | -10/Subcaves | Build established: Derelict-Mutant 4034 | -10/Subcaves | Entered Scraptown 4212 | -9/Scraptown | Visited Spacefarers 4291 | -9/Scraptown | Build established: Mutant 4487 | -9/Scraptown | Visited Bundlers 4564 | -9/Scraptown | Visited Cyclists 4602 | -9/Scraptown | Visited The Evicted 4649 | -9/Scraptown | Visited Cave Peace 4679 | -9/Scraptown | Visited Science Testing Area 4721 | -9/Scraptown | Scanned Subdweller tech in exchange for log data 4726 | -9/Scraptown | Learned Factory stockpile data 4727 | -9/Scraptown | Learned Factory terminal intel 4729 | -9/Scraptown | Learned Research emergency access door positions 4751 | -9/Scraptown | Discovered new exit (range 9) 5060 | -9/Scraptown | Visited UFD Registry 5060 | -9/Scraptown | Registered with UFD as "Longface" 5110 | -9/Scraptown | Visited Abandonware Association 5129 | -9/Scraptown | Learned abandonware demo "OVRCLOCK.EXE" 5132 | -9/Scraptown | Learned abandonware demo "KABOOM.EXE" 5132 | -9/Scraptown | Learned abandonware demo "POISON.EXE" 5170 | -9/Scraptown | Visited Science Guys 5225 | -9/Scraptown | Visited Analyses Database 5260 | -9/Scraptown | Visited Infowarlord's Domain 5303 | -9/Scraptown | Visited Research Penetration Think Tank 5362 | -9/Scraptown | Visited DA-N13 Charitable Foundation 5410 | -9/Scraptown | Visited Junk Repository 5441 | -9/Scraptown | Visited Chapter 10 5542 | -9/Scraptown | Delivered Scrap Shield to a Scientist 5693 | -9/Scraptown | Found DCF Scrap (31 items) 6988 | -9/Scraptown | Guru changed UFD alias to "Flexislasher" 7320 | -9/Scraptown | Entered Cyclist Reading Room 7327 | -9/Scraptown | Learned location of Exiles (-9) 7674 | -9/Scraptown | Build established: Derelict-Mutant 8437 | -9/Scraptown | Found Scrap Suit 8880 | -9/Scraptown | Visited LU-1G1's Boring Crew 9084 | -9/Scraptown | Met Optimus 9084 | -9/Scraptown | Accepted into 0bPrime 9484 | -9/Scraptown | Civil war broke out across Scraptown 9502 | -9/Scraptown | Found Prototype Special Weapon 9558 | -9/Scraptown | Identified exit to Factory 9593 | -9/Scraptown | Found ID Mask 9613 | -9/Scraptown | Optimus destroyed in the chaos of civil war 9619 | -9/Scraptown | Core integrity fell below 20% 9633 | -9/Scraptown | Destroyed by GL-W9G(j) with Overtuned Pulse Rifle Last Messages --------------- 09610_ Slug penetrates 8Z-98T(j). 09610_ 8Z-98T(j) suffers critical hit (Destroy). 09610_ 8Z-98T(j) destroyed. 09613_ D1-TRK(j): "0bPrime is tearing us apart, don't fall for it!" Optimus: This place isn't worth defending, let's get out of here, Flexislasher! Our real resources are elsewhere, after all. 09613_ Optimus: "We are 0bPrime!" 09613_ ANNOUNCEMENT: The traitor Optimus has been dealt with. Put down any remaining collaborators. 09613_ Optimus destroyed. 09618_ Com. Wheel destroyed. 09620_ Acquired 10 matter. 09620_ D1-TRK(j) destroyed. 09621_ Acquired 7 matter. 09623_ J2-QGS(j) heat spikes uncontrollably. 09624_ Critical hit (Burn: +50). 09626_ Acquired 7 matter. 09627_ Battle Rifle destroyed. 09630_ Critical hit (Burn: +50). 09632_ Barrage Gun destroyed. Map ----- +----------------------------------------------------+ | ???????? #???????# #??#" # | | ?????????? #???????####### ###??###### ######## | | ############ ####???????##### ########### ######## | | #???????#"""" """"""""""" """""""" | | #???????#" | | #???????#" | | #???????#" | | #???????#" | | ####### #????####" | | ####??# #????"""" """"""""""""""""""" | | [ [#??# #????"""" """"""""""""""""""" | | #??# #????"""" ""###### ######### | | #??# #????"""" ""# ##?? | | ![=#??# #???#"""" ""# X"#?? | | ####??# ###?#""" =![ ""# "" "" =##?? | | ""#??# ""#"#""" [%!% ""# "" "" X"#?? | | "#??# """"#""" [*!= ""# " " #### | | ""#??# ""#?####;=!*%jj"" "" | | #??# / ###?????;[%!![ "" "" | | ""#??# %= #########=!== ""# " " #### | | ! "#??# !%= % ""# "" "" ""#?? | | !""#??# [* *[%= ![ [ "# "" "" ##?? | | #??# *%/ ![ !=[=% "# X"#?? | | #??# [%==! !%*% ! "# ##?? | | ####### ! TT%[ ! =!*!= ""###### ######### | | TT=*!%= @=!== """""""""""""""""" | | = = [!=%=%/ [= """""""""""""" | | ![= !*! !*!!* =%!= | | %[%*[%! *!!! !!% | | *==%!%= !% = != | | =[#""""# !=[ * !=! | | [ #????# [%! ! | | !%=% #????#""" ""= """""""" """""" | | ######### ###! ####????####### ########### ###### | | ??????? # #????????# ## #?? | | ????? """# #????????### "## #?? | | ???? " # #?????????# ""## # # #?? | | ??#"" " # #?????????# """"## #[ *# #?? | | ??#""" " # #?????????# " ""##!=# #]=#?? | | ???"" " # #?????????# """"#########?##?? | | ???" ?### #?????????# ""#????????????? | | ???" " ???# #?????????# ""#????????????? | | ???""""""???# #?????????## " #????????????? | | ????##?#????# #?????????""""""""""#????????????? | | ????????????# #????????############????????????? | | ?############ #????????????????????????????????? | | ?#""""""""""" #????????##?????################## | | ?#""""" """"" #???????? ???#"""##"""##"""##"" | | ##"""" " "" #?????????"""" ## ""##|""##" "##"" | | #?????????"""" | +----------------------------------------------------+ Best States ------------- Heat Dissipation 35 Energy Generation 15 Energy Capacity 250 Matter Stores 300 Matter Capacity 300 Sight Range 21 Terrain Scan Density 10 Armor Coverage 100 Evasion (%) 55 Recoil Reduction 2 Item Schematics ----------------- None Robot Schematics ------------------ None Fabricated ------------ Nothing Repaired ---------- Nothing Alien Tech Used ----------------- None Achievements -------------- None Challenges ------------ None Game ------ Seed PhysicsGuidedGravjet Manual? 0 Play Time 00:53:35 Cumulative 106.5 hours Start 2025.07.24 @ 12:45:59 End 2025.07.24 @ 14:17:12 Sessions 1 Manual Loads 0 Difficulty Rogue Special Mode None Game No. 167 Rogue 167 Adventurer 0 Explorer 0 Win Type - Total 1 Types 1/0/0/0/0/0/0/0/0/0 Lore% 66 Gallery% 55 Achievement% 49 Wizard Run 0 Options --------- Layout 0 ASCII 0 Keyboard 0 Movement Mouse Keybinds 0 Fullscreen 1 Font 16/SmallcapsGlow Map View 75x55 Zoom Use 0% Tactical HUD 1 Map Filters NONE Filters NONE Steam 1 RUN: 77654d19-8e1d-4890-9726-e87f76103f8d